Cogmind - Beta 9.6 *** ADVENTURER MODE // 2020.08.15 @ 12:02:32 Player: Gucio Result: Destroyed self with Grenade Launcher Performance ------------- Evolutions (0) 0 Regions Visited (1) 200 Robots Destroyed (12) 60 Value Destroyed (194) 194 Prototype IDs (0) 0 Alien Tech Used (0) 0 Bonus (0) 0 TOTAL SCORE: 454 Bonus ------- None Cogmind --------- Core Integrity 0/250 Matter 170/300 Energy 250/250 System Corruption 9% Temperature Cool (0) Movement Walking (210) Ox3 Location -10/Materials Parts ------- > --- POWER (1) -------- Ion Engine > --- PROPULSION (2) --- Aluminum Leg > --- UTILITY (2) ------ High-capacity Storage Unit > --- WEAPON (2) ------- Grenade Launcher > --- INVENTORY (12) --- Ion Engine Ion Engine Ion Engine Aluminum Leg Aluminum Leg Aluminum Leg High-capacity Storage Unit Signal Interpreter Beam Rifle Assault Rifle Assault Rifle Improved Light Cannon Peak State ------------ > --- POWER ------------ Ion Engine > --- PROPULSION ------- Aluminum Leg Aluminum Leg > --- UTILITY ---------- High-capacity Storage Unit Sensor Array > --- WEAPON ----------- Beam Rifle Assault Rifle > --- INVENTORY -------- Ion Engine Ion Engine Ion Engine Aluminum Leg Aluminum Leg Aluminum Leg Small Storage Unit Targeting Computer Light Assault Rifle Improved Light Cannon Grenade Launcher Mining Laser [Rating: 9] Favorites ----------- Power Ion Engine Engine Ion Engine Propulsion Aluminum Leg Leg Aluminum Leg Utility High-capacity Storage Unit Device Sensor Array Storage High-capacity Storage Unit Weapon Assault Rifle Energy Gun Small Laser Ballistic Gun Assault Rifle Ballistic Cannon Improved Light Cannon Launcher Grenade Launcher Special Weapon Mining Laser Build | -11 -10 ------- Run | Scr Mat Slots Evolved . | . . Power . | . . Propulsion . | . . Utility . | . . Weapon . | . . Parts Attached 23 | 6 17 Power 1 | 1 . Engine 1 | 1 . Core . | . . Reactor . | . . Propulsion 3 | 2 1 Treads . | . . Leg 3 | 2 1 Wheel . | . . Hover . | . . Flight . | . . Utility 4 | 1 3 Device 1 | . 1 Storage 3 | 1 2 Processor . | . . Hackware . | . . Protection . | . . Artifact . | . . Weapon 15 | 2 13 Energy Gun 3 | . 3 Energy Cannon . | . . Ballistic Gun 6 | 2 4 Ballistic Cannon 1 | . 1 Launcher 3 | . 3 Special Weapon 2 | . 2 Impact Weapon . | . . Slashing Weapon . | . . Piercing Weapon . | . . Special Melee Weapon . | . . Unidentified Prototypes . | . . Parts Lost 3 | . 3 Power . | . . Propulsion 1 | . 1 Utility 1 | . 1 Weapon 1 | . 1 Highest Loss Streak 3 | . 3 Average Slot Usage (%) 95 | . 95 Engine 14 | . 14 Leg 26 | . 26 Device 12 | . 12 Storage 14 | . 14 Energy Gun 2 | . 2 Ballistic Gun 17 | . 17 Ballistic Cannon 5 | . 5 Special Weapon 1 | . 1 Naked Turns . | . . Heaviest Build 44 | 12 44 Greatest Support 20 | 20 20 Greatest Overweight (x) 4 | 2 4 Average Overweight (x) 1 | . 1 Largest Inventory Capacity 14 | 6 14 Average Capacity 11 | 5 11 Most Carried 12 | 5 12 Average Carried 9 | 2 10 Final Capacity 12 | 6 12 Final Carried 12 | 2 12 Class Distribution -------------------- 100% | Mutant Dominant Class ---------------- Mutant | -10/Materials Resources | -11 -10 ----------- Run | Scr Mat Matter Collected 519 | 158 361 Remotely . | . . Salvage Created 210 | . 210 Parts 30 | . 30 Haulers Intercepted . | . . Recyclers Shooed . | . . Parts Field Recycled . | . . Retrieved Matter . | . . Parts Self-Destructed . | . . Prevented . | . . Kills | -11 -10 ------- Run | Scr Mat Combat Hostiles Destroyed 8 | . 8 Guns 4 | . 4 AOE 4 | . 4 Classes Destroyed 4 | . 4 Builder 2 | . 2 Watcher 2 | . 2 Swarmer 5 | . 5 Grunt 3 | . 3 Best Kill Streak 3 | . 3 Combat Bots Only 3 | . 3 Max Kills in Single Turn 2 | . 2 Gunslinging . | . . Exploded 2 | . 2 Melee . | . . Uniques/NPCs Destroyed . | . . Combat | -11 -10 -------- Run | Scr Mat Damage Taken 712 | . 712 Core 252 | . 252 Absorbed by Shields . | . . Core Remaining (%) 100 | 100 . Volleys Fired 53 | . 53 Largest 2 | . 2 Hottest 100 | . 100 Shots Fired 74 | . 74 Gun 40 | . 40 Cannon 4 | . 4 Launcher 12 | . 12 Special 18 | . 18 Kinetic 41 | . 41 Thermal 21 | . 21 Explosive 12 | . 12 Electromagnetic . | . . Robot Hit Streak 10 | . 10 Robot Miss Streak 4 | . 4 Penetration Max . | . . Secondary Targets . | . . Shots Hit Robots 27 | . 27 Core Hits 17 | . 17 Critical Hits . | . . Critical Kills . | . . Critical Parts Destroyed . | . . Melee Attacks . | . . Impact . | . . Slashing . | . . Piercing . | . . Sneak Attacks . | . . Combat Hostiles . | . . Follow-up Attacks . | . . Damage Inflicted 609 | . 609 Guns 238 | . 238 Cannons 20 | . 20 Explosions 351 | . 351 Melee . | . . Ramming . | . . Kinetic 258 | . 258 Thermal . | . . Explosive 351 | . 351 Electromagnetic . | . . Impact . | . . Slashing . | . . Piercing . | . . Highest Corruption 9 | . 9 Average Corruption 5 | . 5 Corruption Purged . | . . Effects 4 | . 4 Message Errors 2 | . 2 Matter Fused 1 | . 1 Targeting Errors 1 | . 1 Overload Shots . | . . Overflow Damage . | . . Projectiles . | . . Explosions . | . . Melee . | . . Knockbacks . | . . Impact . | . . Kinetic . | . . Secondary . | . . Self-Inflicted Damage 227 | . 227 Shots 10 | . 10 Rammed . | . . Targets Rammed . | . . Kicked . | . . Crushed . | . . Highest Temperature 236 | . 236 Average Temperature 91 | . 91 Received Heat Transfer 120 | . 120 Siege Activations . | . . Robots Corrupted . | . . Combat Hostiles . | . . Parts Fried . | . . Impact Corruptions . | . . Robots Melted . | . . Combat Hostiles . | . . Parts Melted . | . . Heat Transferred . | . . Parts Sabotaged . | . . Parts Stolen . | . . Parts Stripped . | . . Power Chain Reactions . | . . Missiles Intercepted . | . . Alert | -11 -10 ------- Run | Scr Mat Peak Influence 112 | . 112 Average Influence 35 | . 36 Maximum Alert Level . | . . Low Security (%) 100 | 100 100 Level 1 . | . . Level 2 . | . . Level 3 . | . . Level 4 . | . . Level 5 . | . . High Security . | . . Max Security . | . . Squads Dispatched 1 | . 1 Investigation 1 | . 1 Extermination . | . . Reinforcement . | . . Assault . | . . Garrison . | . . Intercept . | . . Construction Impeded . | . . Haulers Reinforced . | . . Stealth | -11 -10 --------- Run | Scr Mat Distress Signals 1 | . 1 Communications Jammed . | . . Distress Signals . | . . Times Spotted 14 | . 14 Peak Tracking Total 4 | . 4 Tactical Retreats . | . . Traps | -11 -10 ------- Run | Scr Mat Traps Triggered 3 | . 3 Indirectly . | . . Trap Hack Attempts . | . . Triggered . | . . Disarmed . | . . Reprogrammed . | . . Reused . | . . Traps Extracted . | . . Installed . | . . Triggered . | . . Machines | -11 -10 ---------- Run | Scr Mat Machines Disabled . | . . Max in Single Turn . | . . Machines Sabotaged . | . . Garrisons Compromised . | . . Overloaded Fab Kills . | . . Fab Network Shutdowns . | . . Hacking | -11 -10 --------- Run | Scr Mat Machines Accessed 7 | . 7 Terminals 7 | . 7 Fabricators . | . . Repair Stations . | . . Recycling Units . | . . Scanalyzers . | . . Garrison Access . | . . Total Hacks 21 | . 21 Successful 11 | . 11 Failed 10 | . 10 Catastrophic . | . . Database Lockouts . | . . Manual 9 | . 9 Terminals 21 | . 21 Fabricators . | . . Repair Stations . | . . Recycling Units . | . . Scanalyzers . | . . Garrison Access . | . . Terminal Hacks 11 | . 11 Record 4 | . 4 Robot Analysis 1 | . 1 Level Access Points 1 | . 1 Emergency Access Points 1 | . 1 Scanalyzer Index 1 | . 1 Registered Components 1 | . 1 Zone Layout 2 | . 2 Fabricator Hacks . | . . Repair Station Hacks . | . . Recycling Unit Hacks . | . . Scanalyzer . | . . Garrison Access Hacks . | . . Unauthorized Hacks . | . . Terminals . | . . Fabricators . | . . Repair Stations . | . . Recycling Units . | . . Scanalyzers . | . . Garrison Access . | . . Data Cores Recovered . | . . Used . | . . Hacking Detections 7 | . 7 Full Trace Events 1 | . 1 Feedback Events . | . . Feedback Blocked . | . . Robot Schematics Acquired . | . . Robots Built . | . . Matter . | . . Time . | . . Total Robot Build Rating . | . . Part Schematics Acquired . | . . Parts Built . | . . Matter . | . . Time . | . . Total Part Build Rating . | . . Parts Repaired . | . . Time . | . . Parts Recycled . | . . Recycled Matter . | . . Retrieved Matter . | . . Retrieved Components . | . . Parts Scanalyzed . | . . Part Schematics Acquired . | . . Parts Damaged . | . . Bothacking | -11 -10 ------------ Run | Scr Mat Used RIF Installer . | . . Robots Hacked . | . . Non-combat . | . . Combat . | . . Robot Hacks Applied . | . . Relay Couplers Released . | . . Robots Rewired . | . . Allies Hacked . | . . Hacks Repelled . | . . Allies | -11 -10 -------- Run | Scr Mat Total Allies . | . . Largest Group . | . . Highest-Rated Group . | . . Highest-Rated Ally . | . . Total Orders . | . . Ally Attacks . | . . Total Damage . | . . Kills . | . . Allies Corrupted . | . . Allies Melted . | . . Intel | -11 -10 ------- Run | Scr Mat Robot Analysis Total 1 | . 1 Derelict Logs Recovered . | . . Drone Launches . | . . Drone Recoveries . | . . Exploration | -11 -10 ------------- Run | Scr Mat Turns Passed 1731 | 77 1654 Spaces Moved 795 | 49 746 Core 27 | 27 . Treads . | . . Legs 768 | 22 746 Wheels . | . . Hover . | . . Flight . | . . Fastest Speed 50 | 50 120 Average Speed 173 | 122 176 Slowest Speed 240 | 150 240 Overloaded Moves . | . . Propulsion Burnouts . | . . Robots Hopped . | . . Cave-ins Triggered 1 | . 1 Exploration Rate (%) 50 | 5 95 Regions Visited 1 Branch Regions . Pre-discovered Areas . | . . Known Exits Taken . | . . Unknown Exits Taken 1 | 1 . Scrap Searched . | . . Spaces Dug 43 | . 43 Terrain Destroyed 93 | . 93 Melee . | . . Projectile 16 | . 16 AOE 77 | . 77 Actions | -11 -10 --------- Run | Scr Mat Total 1042 | 66 976 Wait 137 | 4 133 Move 794 | 48 746 Hop . | . . Pick Up 25 | 8 17 Fast Attach 2 | . 2 Attach 9 | 6 3 Detach 1 | . 1 Swap 12 | . 12 Drop 9 | . 9 Fire 53 | . 53 Melee . | . . Ram . | . . Kick . | . . Crush . | . . Escape Stasis . | . . Rewire . | . . Trap . | . . Miscellaneous . | . . Route ------- -11/Scrapyard -10/Materials (discovered 4 exits: *Mat x3 / [*Min]) History --------- Turn | Location | Event 17 | -11/Scrapyard | Discovered new exit (range 15) 78 | -11/Scrapyard | Entered Materials 200 | -10/Materials | Met 8R-AWN 225 | -10/Materials | Discovered new exit (range 15) 302 | -10/Materials | Build established: Mutant 344 | -10/Materials | Discovered new exit (range 3) 494 | -10/Materials | Discovered new exit (range 11) 1003 | -10/Materials | Discovered new exit (range 15) 1229 | -10/Materials | Identified exit to Materials 1598 | -10/Materials | Crushed by falling debris 1598 | -10/Materials | Core integrity fell below 50% 1629 | -10/Materials | Lost 3 parts (1n1u1w) 1712 | -10/Materials | Core integrity fell below 20% 1732 | -10/Materials | Destroyed self with Grenade Launcher Last Messages --------------- 01594_ U-05 Engineer builds a Wall. 01598_ The unstable cave ceiling collapses. 01598_ Crushed by falling debris. 01598_ Aluminum Leg destroyed. 01598_ System corrupted by crushing effect (+2). 01598_ Mining Laser destroyed. 01598_ System corrupted by crushing effect (+4). 01598_ Sensor Array destroyed. 01598_ System corrupted by crushing effect (+2). 01628_ 1 SPYGFJ /9BG,&|:ZP#U#WE# 01648_ System corrupted: Matter fused (-7). 01689_ The unstable cave ceiling collapses. 01703_ R-06 Scavenger collects Terrain Scanner. 01705_ U-05 Engineer destroyed. 01707_ System corrupted: Grenade Launcher targeting data glitched. 01711_ Destroyed Lgt. Ion Engine. 01715_ The unstable cave ceiling collapses. 01728_ U-05 Engineer builds a Wall. 01730_ The unstable cave ceiling collapses. 01732_ M:CNJVNVMUXOO0UF89=/Q4OS%HIMGWVR:Z Map ----- +----------------------------------------------------+ | ##"""# # ## # #??????????????# | | ##"Y"# # ## # #???????######## | | ##" "# ##+################# #???????# | | # # #??????# #???????# """ "" | | # # """ #??????# #???????# """ "" | | + # """ #??????# #???????# """ "" | | # " """"" # """ #??????# #???????# | | # T """"" # #??????# #???????# | | # " """"" # #??????# #??############+ | | # + ######## #??# + | | # # # !# #??# T # | | # ######## ## ! # """ # #??# # | | ### ##?????# ##!! # """ + #??# ! # | | ## ##????# ## # """ # %###########+## | | # #????# ## # # < | | # #????# ## # #u | | # < #????# ########## # ############+#### | | # #????# #???????# ##????????# # | | #"" ""#????# ######### ########## # | | ##"|||"##????# + """ # | | ?##"""##?????########### ########## """ # | | ??#####????????????????# # #??###??# """ # | | ???????????????????????# ##???????# # | | ???????????????????????# # ##???????######## | | ???????????????????????# #??????????????? | | ???????????????????????##@ ##??????????????? | | | | | | | | | | | | | | | | | | | | | | | | | | | | | | | | | | | | | | | | | | | | | | | | | +----------------------------------------------------+ Best States ------------- Heat Dissipation 25 Energy Generation 10 Energy Capacity 250 Matter Stores 300 Matter Capacity 300 Sight Range 16 Robot Scan Range 10 Terrain Scan Density 10 Resistance: KI 20 Resistance: TH 20 Resistance: EX 20 Resistance: EM 20 Resistance: I 20 Resistance: S 20 Resistance: P 20 Evasion (%) 40 Offensive Hacking 10 Item Schematics ----------------- None Robot Schematics ------------------ None Fabricated ------------ Nothing Alien Tech Used ----------------- None Achievements -------------- None Challenges ------------ None Game ------ Seed ScanLatentRay Manual? 0 Play Time 00:17:39 Cumulative 4.4 hours Start 2020.08.15 @ 11:42:47 End 2020.08.15 @ 12:02:32 Sessions 1 Manual Loads 0 Difficulty Adventurer Special Mode None Game No. 8 Rogue 5 Adventurer 3 Explorer 0 Win Type - Total 0 Types 0/0/0/0/0/0/0 Lore% 5 Gallery% 7 Achievement% 7 Wizard Run 0 Options --------- ASCII 0 Keyboard 0 Movement Mouse Keybinds 0 Fullscreen 1 Font 24/Smallcaps Map View 76x50 Tactical HUD 1 Map Filters NONE Filters NONE Steam 1 RUN: bbaa41b2-4528-4081-85fb-9e6de9a3ae49